Workbook

Sheet Title
I5: GAZ-SYSTEM the system that connects
A17: Simplified tariff model for high-methane gas (E)
A18: Publication in fulfilment of Article 30 of TAR NC
A19: Tariff for year 2021
A21: December, 2020

Sheet Model_E
B5: Simplified Tariff Model for High-methane gas (gas E)
B6: Please fill in the orange fields only
B8: =IF(AND($I$25>0,OR($I$34="",$I$34=0,$I$40="",$I$40=0)),"Please enter forecasted entry and exit capacity","") -> 
B12: =IF(AND($I$29<1,$I$31<1,OR(I36="",I36=0,I38="",I38=0)),"Please enter UGS and LNG capacity",IF(AND($I$29<1,OR($I$36="",$I$36=0,$I$42="",$I$42=0)),"Please enter UGS forecasted capacity",IF(AND($I$31<1,OR($I$38="",$I$38=0)),"Please enter LNG forecasted capacity",IF(AND($I$29<1,$I$31<1,OR(I36="",I36=0,I38="",I38=0)),"Please enter UGS and LNG capacity","")))) -> 
D14: Tariff year 2021 | H14: Tariff year 2022
B17: Allowed revenue (Projection) in PLN | C17: PLN | E17: 1721574182 | I17: 1807652891
B19: Entry/Exit split
B20: Entry | C20: % | E20: 0.45 | I20: 0.45
B22: Exit | C22: % | E22: =1-$E$20 -> 0.55 | I22: =1-$I$20 -> 0.55
B24: Capacity/commodity split
B25: Capacity | C25: % | E25: 1 | I25: 1
B27: Commodity | C27: % | E27: =1-$E$25 -> 0 | I27: =1-$I$25 -> 0
B29: UGS Discount | C29: % | E29: 0.8 | I29: 0.8
B31: LNG Disount | C31: % | E31: 1 | I31: 1
B33: Forecast of capacity sales
B34: Entry Points | C34: [kWh/h] | E34: 21688993.52 | I34: 21688994
I35: 0
B36: Entry UGS | C36: [kWh/h] | E36: 24818243.76 | I36: 24818244
B38: Entry LNG | C38: [kWh/h] | E38: 6370890 | I38: 6370890
B40: Exit Points | C40: [kWh/h] | E40: 55429452.39 | I40: 55429452
B42: Exit UGS | C42: [kWh/h] | E42: 14374170 | I42: 14374170
B44: Reserve prices
B45: Entry Points - high-methane | C45: [PLN/MWh/h] | E45: 3.318133677 | I45: =10*$T$63 -> 3.484040291
B47: Entry Points UGS - high-methane | C47: [PLN/MWh/h] | E47: 0.6636267355 | I47: =10*$T$64 -> 0.6968080583
B49: Entry Points LNG - high-methane | C49: [PLN/MWh/h] | E49: 0 | I49: =10*$T$65 -> 0
B51: Exit Points - high-methane | C51: [PLN/MWh/h] | E51: 1.853889481 | I51: =10*$T$66 -> 1.946583967
B53: Exit Points UGS - high-methane | C53: [PLN/MWh/h] | E53: 0.3707778961 | I53: =10*$T$67 -> 0.3893167935
B58: Gas transmission simplified tariff model allows for estimation of reserve prices for firm yearly contracts only. We hereby inform that all data calculated above has been given for information only and it does not constitute an offer within the meaning of Article 66 and subsequent articles of Polish Civil Code. The above calculated reserve prices are net prices. Above prices shall be increased by the value-added tax (VAT), at the amount applicable under the relevant tax regulations. Simplified tariff model for gas transmission can only be used for estimating reserve prices for standard product for an exemplary client. Due to variety of products including interruptible products and short-term products the applicable tariff may vary. from calculated. Presented reserve prices for tariff year 2021 are prices approved by the President of Energy Regulatory Office within the Tariff No. 14 for Gaseous Fuels Transmission Services. The default assumptions for tariff year 2022 are equal with the assumptions for calculating the reserve prices for year 2021, except for the revenue. | N58: nie kasowac!!
N59: komórki robocze - nie dodawać wierszy ani kolumn w tym skoroszycie!!!
N62: Discount | O62: Split | R62: Moc do kalkulacji | S62: Revenue | T62: Tariff
N63: 0 | O63: 0.05 | Q63: Entry Points | R63: =I34 -> 21688994 | S63: =$I$17*$I$25*$I$20*$R$63/SUM($R$63:$R$65) -> 661952281.8 | T63: =IF(ISERROR($S$63/($I$34*8760)*100),0,$S$63/($I$34*8760)*100) -> 0.3484040291
N64: 0.1 | O64: 0.1 | Q64: Entry UGS | R64: =$I$36*(1-$I$29) -> 4963648.8 | S64: =$I$17*$I$25*$I$20*$R$64/SUM($R$63:$R$65) -> 151491519.1 | T64: =IF(ISERROR($S$64/($I$36*8760)*100),0,$S$64/($I$36*8760)*100) -> 0.06968080583 | U64: =T64/T63 -> 0.2 | V64: =IF(U64=(1-$I$29),"ok","check") -> ok
N65: 0.2 | O65: 0.15 | Q65: Entry LNG | R65: =$I$38*(1-$I$31) -> 0 | S65: =$I$17*$I$25*$I$20*$R$65/SUM($R$63:$R$65) -> 0 | T65: =IF(I38=0,0,$S$65/($I$38*8760)*100) -> 0 | U65: =T65/T63 -> 0 | V65: =IF(U65=(1-$I$31),"ok","check") -> ok
N66: 0.3 | O66: 0.2 | Q66: Exit Points | R66: =$I$40 -> 55429452 | S66: =$I$17*$I$25*$I$22*$R$66/SUM($R$66:$R$67) -> 945187203.5 | T66: =IF(ISERROR($S$66/($I$40*8760)*100),0,$S$66/($I$40*8760)*100) -> 0.1946583967
N67: 0.4 | O67: 0.25 | Q67: Exit UGS | R67: =$I$42*(1-$I$29) -> 2874834 | S67: =$I$17*$I$25*$I$22*$R$67/SUM($R$66:$R$67) -> 49021886.58 | T67: =IF(ISERROR($S$67/($I$42*8760)*100),0,$S$67/($I$42*8760)*100) -> 0.03893167935 | U67: =T67/T66 -> 0.2 | V67: =IF(U67=(1-$I$29),"ok","check") -> ok
N68: 0.5 | O68: 0.3 | Q68: Commodity | R68: =#REF! ->  | S68: =$I$17*$I$27 -> 0 | T68: =$S$68/#REF!*100 -> 
N69: 0.6 | O69: 0.35 | S69: =SUM(S63:S68) -> 1807652891
N70: 0.7 | O70: 0.4 | S70: =IF($S$69=$E$17,"ok.","check") -> check
N71: 0.8 | O71: 0.45
N72: 0.9 | O72: 0.5
N73: 1 | O73: 0.6
O74: 0.65
O75: 0.7
O76: 0.75
O77: 0.8
O78: 0.85
O79: 0.9
O80: 0.95
O81: 1
